bitfinex/quotes_SOLUSD_20240816
["timestamp","ask_amount","ask_price","bid_price","bid_amount"]
[1723819139544,20.0,139.77,139.71,0.12549]
[1723819139731,20.0,139.77,139.71,46.36096602]
[1723819139932,20.0,139.77,139.72,0.12549]
[1723819140229,20.0,139.77,139.71,45.12549]
[1723819140445,20.0,139.77,139.71,0.12549]
[1723819141039,20.0,139.77,139.7,45.25098]
[1723819141348,20.0,139.77,139.7,45.12549]
[1723819142133,20.0,139.77,139.71,7.53387]
[1723819142333,20.0,139.77,139.72,45.12549]
[1723819142742,20.0,139.77,139.73,45.0]
[1723819143048,20.0,139.77,139.71,45.25098]
[1723819143427,15.5094,139.78,139.73,0.12549]
[1723819143624,15.5094,139.78,139.73,0.37647]
[1723819143949,15.5094,139.78,139.73,0.12549]
[1723819144251,15.5094,139.78,139.71,252.1274575]
[1723819144461,15.5094,139.78,139.71,207.0019675]
[1723819144873,20.0,139.77,139.71,207.0019675]
[1723819146854,34.48,139.73,139.71,207.0019675]
[1723819147045,20.0,139.72,139.71,207.0019675]
[1723819147245,34.48,139.75,139.71,207.0019675]
[1723819147472,20.0,139.74,139.71,207.0019675]
[1723819147753,20.0,139.74,139.72,45.0]
[1723819148357,15.5094,139.78,139.72,45.0]
[1723819148743,34.48,139.75,139.72,45.0]
[1723819149138,20.0,139.77,139.72,45.0]
[1723819150060,20.0,139.77,139.69,207.0019675]
[1723819151160,34.48,139.72,139.69,207.0019675]
[1723819151462,20.0,139.71,139.69,207.0019675]
[1723819151770,20.0,139.71,139.64,234.1630675]
[1723819152428,20.0,139.71,139.64,214.1630675]
[1723819152632,34.48,139.68,139.61,207.0019675]
[1723819152868,34.48,139.68,139.6,247.9398675]
[1723819153075,20.0,139.67,139.57,45.0757]
[1723819153229,50.0,139.67,139.57,17.9113]
[1723819153558,50.0,139.67,139.56,464.8019675]
[1723819153757,34.48,139.63,139.56,464.8019675]
[1723819153970,34.48,139.63,139.56,502.7148675]
[1723819154150,50.0,139.67,139.57,20.0]
[1723819154452,50.0,139.67,139.58,17.9101]
[1723819155151,53.393101,139.67,139.56,471.9671675]
[1723819155958,53.393101,139.67,139.57,7.1648]
[1723819156144,50.0,139.67,139.56,471.9671675]
[1723819156337,6.5463,139.66,139.56,471.9671675]
[1723819156543,20.0,139.65,139.57,7.1648]
[1723819156739,20.0,139.65,139.58,45.0]
[1723819157156,20.0,139.65,139.56,464.8019675]
[1723819157350,15.4626,139.64,139.56,464.8019675]
[1723819157655,20.0,139.63,139.56,464.8019675]
[1723819158754,20.0,139.63,139.57,45.0]
[1723819159255,20.0,139.63,139.58,0.25098]
[1723819159775,20.0,139.63,139.58,0.12549]
[1723819159949,20.0,139.63,139.57,52.28989]
[1723819160150,20.0,139.63,139.58,0.37647]
[1723819160349,20.0,139.63,139.58,38.28687]
[1723819160560,20.0,139.65,139.59,45.0]
[1723819160771,20.0,139.65,139.58,0.37647]
[1723819160976,20.0,139.65,139.58,7.54067]
[1723819161142,20.0,139.65,139.59,45.12549]
[1723819161466,20.0,139.65,139.6,0.12549]
[1723819161671,20.0,139.65,139.6,0.37647]
[1723819162272,63.18,139.65,139.59,45.0]
[1723819162559,63.18,139.65,139.57,17.9114]
[1723819162560,63.18,139.65,139.58,45.12549]
[1723819162764,63.18,139.65,139.58,45.0]
[1723819163976,20.0,139.65,139.6,7.28839]
[1723819164174,16.8657,139.68,139.61,45.12549]
[1723819164175,20.0,139.67,139.61,45.12549]
[1723819164354,16.8657,139.68,139.61,52.28819]
[1723819164551,16.8657,139.68,139.63,7.1614]
[1723819164854,19.59501323,139.72,139.64,53.79920257]
[1723819165048,16.7651,139.72,139.65,1.13622204]
[1723819165282,16.7651,139.72,139.64,52.66316]
[1723819165450,16.7651,139.72,139.64,45.50196]
[1723819165770,16.7651,139.72,139.64,45.37647]
[1723819165970,20.0,139.71,139.64,45.37647]
[1723819166658,20.0,139.71,139.64,52.53757]
[1723819167756,20.0,139.71,139.65,0.12549]
[1723819168474,20.0,139.71,139.65,7.28609]
[1723819168776,20.0,139.71,139.66,45.37647]
[1723819168980,20.0,139.71,139.66,52.53667]
[1723819169856,20.0,139.71,139.67,7.1595]
[1723819170059,23.43893336,139.75,139.66,252.3784375]
[1723819170257,43.18,139.72,139.66,252.3784375]
[1723819170455,43.18,139.72,139.66,259.5386375]
[1723819170658,20.0,139.71,139.67,0.12549]
[1723819170877,16.3914,139.76,139.68,0.12549]
[1723819171061,16.3914,139.76,139.68,52.53547]
[1723819171062,20.0,139.75,139.68,52.53547]
[1723819171259,20.0,139.75,139.68,45.25098]
[1723819171558,20.0,139.75,139.68,52.41008]
[1723819172256,20.0,139.75,139.66,207.0019675]
[1723819173902,20.0,139.75,139.67,45.0]
[1723819174188,20.0,139.75,139.66,45.12549]
[1723819174483,20.0,139.75,139.66,83.02559]
[1723819174776,20.0,139.75,139.68,0.12549]
[1723819174988,20.0,139.75,139.68,45.12549]
[1723819175870,34.49,139.74,139.68,45.12549]
[1723819176073,20.0,139.73,139.68,45.12549]
[1723819177067,16.5069,139.8,139.71,20.0]
[1723819177273,16.5069,139.8,139.73,0.12549]
[1723819177482,16.5069,139.8,139.73,1.55575154]
[1723819177668,16.5069,139.8,139.72,45.37647]
[1723819177856,16.5069,139.8,139.72,46.68040217]
[1723819178261,16.5069,139.8,139.72,46.42942217]
[1723819178757,34.49,139.75,139.71,207.0019675]
[1723819180061,34.49,139.75,139.72,45.0]
[1723819180264,20.0,139.74,139.71,207.0019675]
[1723819180486,20.0,139.74,139.65,213.1733675]
[1723819180689,17.4505,139.73,139.63,207.0019675]
[1723819180870,34.49,139.69,139.63,207.0019675]
[1723819181389,17.4505,139.73,139.66,7.1597]
[1723819181766,20.0,139.72,139.66,7.1597]
[1723819182683,20.0,139.72,139.67,45.0]
[1723819182989,17.4505,139.73,139.67,52.1596]
[1723819183190,20.0,139.72,139.68,7.66066]
[1723819183390,2.87996605,139.77,139.69,45.0]
[1723819183680,20.0,139.8,139.69,45.0]
[1723819184070,18.2064,139.79,139.7,1.43100746]
[1723819184286,20.0,139.78,139.71,1.43100746]
[1723819184960,20.0,139.78,139.69,46.43094875]
[1723819185164,20.0,139.78,139.68,45.50196]
[1723819185886,20.0,139.78,139.68,45.37647]
[1723819186086,20.0,139.78,139.68,45.12549]
[1723819188394,20.0,139.78,139.68,52.28439]
[1723819188593,34.49,139.76,139.69,7.1585]
[1723819188889,20.0,139.75,139.7,45.0]
[1723819189283,20.0,139.78,139.7,45.0]
[1723819190989,20.0,139.78,139.67,207.1274575]
[1723819191185,20.0,139.78,139.67,207.0019675]
[1723819192214,45.0,139.77,139.67,207.0019675]
[1723819192519,26.8182,139.76,139.67,207.0019675]
[1723819193598,16.72,139.75,139.67,207.0019675]
[1723819193813,20.0,139.74,139.67,207.0019675]
[1723819193966,20.0,139.74,139.63,7.1614]
[1723819194169,20.0,139.74,139.64,45.12549]
[1723819194393,20.0,139.74,139.64,45.0]
[1723819194601,20.0,139.74,139.62,234.1640675]
[1723819194779,20.0,139.74,139.62,214.1640675]
[1723819194989,20.0,139.74,139.62,207.0019675]
[1723819195286,20.0,139.74,139.63,1.43168863]
[1723819196293,20.0,139.74,139.63,46.43168863]
[1723819196500,20.0,139.74,139.64,0.25098]
[1723819196672,20.0,139.74,139.65,8.71714432]
[1723819196873,20.0,139.74,139.66,45.0]
[1723819197070,20.0,139.74,139.67,0.12549]
[1723819197397,16.72,139.75,139.68,7.1591]
[1723819197601,16.72,139.75,139.69,45.12549]
[1723819198280,16.72,139.75,139.69,46.55381025]
[1723819198678,34.49,139.74,139.69,45.0]
[1723819198878,34.49,139.74,139.68,45.0]
[1723819199182,20.0,139.73,139.69,1.43116036]
[1723819199385,20.0,139.74,139.68,45.0]
[1723819199685,20.0,139.74,139.68,46.43116385]
[1723819200288,20.0,139.74,139.68,45.0]
[1723819201004,20.0,139.74,139.69,0.12549]
[1723819201500,20.0,139.74,139.68,45.0]
[1723819201878,3.31607272,139.77,139.69,0.12549]
[1723819202082,17.6412,139.79,139.69,0.25098]
[1723819202291,17.6412,139.79,139.7,7.1581]
[1723819202488,17.6412,139.79,139.71,1.55564591]
[1723819202883,17.6412,139.79,139.72,0.12549]
[1723819203073,20.96613366,139.79,139.71,0.12549]
[1723819203279,20.0,139.78,139.71,45.37647]
[1723819203993,34.49,139.74,139.68,214.0046675]
[1723819204584,34.49,139.74,139.68,207.0019675]
[1723819205192,20.0,139.73,139.68,207.0019675]
[1723819205787,20.96613366,139.79,139.69,7.99717435]
[1723819206205,20.0,139.78,139.7,8.58904025]
[1723819206507,52.1312,139.79,139.73,0.12549]
[1723819206694,52.1312,139.79,139.73,0.50196]
[1723819207007,52.1312,139.79,139.73,45.50196]
[1723819207603,52.1312,139.79,139.73,45.12549]
[1723819207811,52.1312,139.79,139.72,207.0019675]
[1723819207812,34.49,139.75,139.72,207.0019675]
[1723819207988,20.0,139.74,139.72,207.0019675]
[1723819210006,17.6412,139.79,139.72,207.0019675]
[1723819210213,17.6412,139.79,139.73,45.0]
[1723819211090,17.6412,139.79,139.74,0.12549]
[1723819211588,17.6412,139.79,139.73,45.0]
[1723819212203,20.0,139.78,139.73,45.0]
[1723819212406,43.09,139.77,139.73,45.0]
[1723819212583,43.09,139.77,139.72,45.0]
[1723819213907,20.0,139.78,139.72,45.0]
[1723819214111,20.0,139.78,139.73,0.37647]
[1723819214315,20.0,139.78,139.73,0.12549]
[1723819214615,20.0,139.78,139.72,70.0495]
[1723819214909,20.0,139.78,139.73,7.1564]
[1723819215117,20.0,139.78,139.74,45.0]
[1723819215315,20.0,139.8,139.74,45.0]
[1723819215494,43.09,139.79,139.74,45.0]
[1723819215696,20.0,139.78,139.73,45.0]
[1723819216115,20.0,139.78,139.73,52.1566]
[1723819216417,20.0,139.78,139.73,45.0]
[1723819216891,20.0,139.78,139.72,45.12549]
[1723819217239,20.0,139.78,139.72,52.28259]
[1723819219010,20.0,139.78,139.73,7.1565]
[1723819219319,20.0,139.78,139.74,45.25098]
[1723819219694,20.0,139.78,139.74,45.0]
[1723819220004,20.0,139.81,139.71,223.6794575]
[1723819220205,20.0,139.81,139.71,207.0019675]
[1723819222907,20.0,139.81,139.72,45.0]
[1723819223523,20.0,139.81,139.73,0.25098]
[1723819224031,18.1219325,139.82,139.74,0.25098]
[1723819224337,18.1219325,139.82,139.75,0.25098]
[1723819224630,0.8277325,139.82,139.75,59.30708]
[1723819224801,0.8277325,139.82,139.76,0.74400238]
[1723819225002,0.8277325,139.82,139.76,0.12549]
[1723819225315,0.8277325,139.82,139.76,7.155]
[1723819225514,0.8277325,139.82,139.77,45.12549]
[1723819225719,0.8277325,139.82,139.77,45.70522525]
[1723819226229,0.8277325,139.82,139.78,7.27949]
[1723819226400,0.8277325,139.82,139.79,45.70512436]
[1723819226600,0.8277325,139.82,139.79,45.0]
[1723819227114,0.8277325,139.82,139.78,45.12549]
[1723819227314,0.8277325,139.82,139.78,52.27949]
[1723819227524,0.8277325,139.82,139.79,1.42906908]
[1723819227723,0.8277325,139.82,139.78,45.12549]
[1723819228022,0.8277325,139.82,139.78,52.27949]
[1723819228211,0.8277325,139.82,139.79,0.12549]
[1723819228622,0.8277325,139.82,139.78,52.27949]
[1723819229012,0.8277325,139.82,139.79,7.1535]
[1723819229207,0.8277325,139.82,139.8,45.12549]
[1723819229724,0.8277325,139.82,139.81,7.52897]
[1723819230028,0.8277325,139.82,139.81,52.65446]
[1723819230208,0.8277325,139.82,139.81,77.34736]
[1723819230600,16.8254,139.95,139.86,7.1499]
[1723819230811,16.8254,139.95,139.87,45.0]
[1723819231422,20.14520298,139.95,139.87,45.0]
[1723819231598,20.14520298,139.95,139.88,0.25098]
[1723819231799,7.5894325,139.96,139.89,0.12549]
[1723819231800,0.8277325,139.96,139.89,0.12549]
[1723819232022,0.8277325,139.96,139.89,52.02239]
[1723819232610,0.8277325,139.96,139.9,0.25098]
[1723819233104,0.8277325,139.96,139.89,52.02239]
[1723819233307,0.8277325,139.96,139.9,0.12549]
[1723819233723,0.8277325,139.96,139.89,45.0]
[1723819233909,0.8277325,139.96,139.85,31.9567]
[1723819233910,0.8277325,139.96,139.85,6.9307]
[1723819234525,0.8277325,139.96,139.78,207.0019675]
[1723819234526,17.9442,139.94,139.78,207.0019675]
[1723819234707,17.9442,139.94,139.79,20.0]
[1723819234708,20.0,139.93,139.79,20.0]
[1723819235109,20.0,139.93,139.77,258.8794675]
[1723819235110,30.0,139.9,139.77,258.8794675]
[1723819235330,20.0,139.89,139.77,258.8794675]
[1723819235710,20.0,139.89,139.78,7.154]
[1723819236119,30.0,139.88,139.78,7.154]
[1723819236427,20.0,139.87,139.79,27.1535]
[1723819236859,20.0,139.87,139.8,7.1529]
[1723819237136,20.0,139.87,139.8,57.8821]
[1723819237323,20.0,139.87,139.82,0.12549]
[1723819237523,3.42146773,139.91,139.82,0.12549]
[1723819237726,20.0,139.93,139.82,0.12549]
[1723819238337,20.0,139.93,139.81,45.37647]
[1723819238741,20.0,139.93,139.78,234.1557675]
[1723819239924,45.0,139.92,139.78,207.0019675]
[1723819240135,6.6552,139.9,139.78,207.0019675]
[1723819240344,6.6552,139.9,139.74,213.9944675]
[1723819240345,30.0,139.86,139.74,213.9944675]
[1723819240552,37.989,139.85,139.74,213.9944675]
[1723819240771,37.989,139.85,139.74,207.0019675]
[1723819241218,30.0,139.83,139.74,207.0019675]
[1723819241418,30.0,139.83,139.67,20.0]
[1723819241419,6.6771,139.81,139.67,20.0]
[1723819241641,6.6771,139.81,139.67,227.0019675]
[1723819241642,20.0,139.8,139.67,227.0019675]
[1723819241961,20.0,139.8,139.62,227.0019675]
[1723819242125,62.1766,139.79,139.62,207.0019675]
[1723819242324,30.0,139.77,139.62,207.0019675]
[1723819242560,43.09,139.68,139.62,207.0019675]
[1723819242843,43.09,139.68,139.61,6.9037]
[1723819243951,20.0,139.67,139.59,17.9091]
[1723819244262,20.0,139.67,139.58,382.4]
[1723819244545,20.0,139.67,139.58,389.5641]
[1723819244747,7.1344,139.71,139.58,389.5641]
[1723819244748,20.0,139.7,139.58,389.5641]
[1723819245051,20.0,139.7,139.6,20.0]
[1723819245225,20.0,139.7,139.6,27.1628]
[1723819245555,20.0,139.7,139.6,20.0]
[1723819245853,20.0,139.7,139.6,27.1632]
[1723819246020,20.0,139.7,139.61,45.50196]
[1723819246226,43.09,139.68,139.62,45.0]
[1723819246419,43.09,139.68,139.61,0.37647]
[1723819246420,20.0,139.67,139.61,0.37647]
[1723819246728,20.0,139.67,139.61,0.12549]
[1723819246930,20.0,139.67,139.6,45.0]
[1723819247130,20.0,139.67,139.61,0.25098]
[1723819247540,20.0,139.7,139.61,0.25098]
[1723819247721,20.0,139.7,139.62,20.0]
[1723819247921,20.0,139.7,139.63,45.25098]
[1723819248128,20.0,139.7,139.64,7.41208]
[1723819248359,43.09,139.72,139.66,0.12549]
[1723819248522,6.7642,139.75,139.66,0.50196]
[1723819248729,6.7642,139.75,139.65,52.1605]
[1723819248730,6.7642,139.75,139.65,427.4]
[1723819249431,9.54189398,139.75,139.65,427.4]
[1723819250032,9.54189398,139.75,139.66,0.25098]
[1723819250228,9.54189398,139.75,139.65,427.4]
[1723819250435,9.54189398,139.75,139.66,0.12549]
[1723819250636,9.54189398,139.75,139.65,427.4]
[1723819251170,20.0,139.74,139.65,427.4]
[1723819253837,6.7642,139.75,139.65,427.4]
[1723819254038,30.0,139.77,139.66,0.25098]
[1723819254343,30.0,139.77,139.67,0.25098]
[1723819254536,30.0,139.77,139.67,45.0]
[1723819254734,33.43274362,139.77,139.67,45.0]
[1723819255262,20.0,139.76,139.67,45.0]
[1723819256349,20.0,139.76,139.67,52.1597]
[1723819256550,20.0,139.76,139.68,0.25098]
[1723819256751,20.0,139.76,139.67,45.0]
[1723819257143,20.0,139.76,139.66,45.25098]
[1723819257350,20.0,139.76,139.64,389.3479]
[1723819258074,45.0,139.75,139.64,382.4]
[1723819258240,20.0,139.74,139.64,382.4]
[1723819259859,20.0,139.74,139.61,25.1778]
[1723819260036,20.0,139.74,139.62,0.12549]
[1723819260367,20.0,139.74,139.61,25.1778]
[1723819260575,20.0,139.74,139.62,45.0]
[1723819260882,20.0,139.74,139.61,18.0151]
[1723819261083,69.1117,139.73,139.6,389.3477]
[1723819261237,20.0,139.72,139.6,6.9477]
[1723819261841,20.0,139.72,139.57,400.1641]
[1723819262043,45.0,139.71,139.57,400.1641]
[1723819262383,30.0,139.69,139.57,400.1641]
[1723819262667,20.0,139.68,139.57,400.1641]
[1723819263252,30.0,139.67,139.57,400.1641]
[1723819263463,30.0,139.67,139.57,17.7641]
[1723819263665,20.0,139.66,139.56,7.0854]
[1723819263856,20.0,139.66,139.55,382.4]
[1723819263857,24.4979,139.65,139.55,382.4]
[1723819264174,30.0,139.67,139.58,7.1639]
[1723819264462,43.09,139.64,139.57,17.9111]
[1723819264679,9.949289,139.69,139.55,389.5657]
[1723819264849,43.09,139.62,139.55,389.5657]
[1723819265054,43.09,139.62,139.56,7.29079]
[1723819265252,9.949289,139.69,139.57,0.12549]
[1723819265481,43.09,139.63,139.57,0.12549]
[1723819265643,20.0,139.62,139.55,382.4]
[1723819266049,20.0,139.62,139.52,14.2524]
[1723819266260,43.09,139.59,139.52,14.2524]
[1723819266578,43.09,139.57,139.48,0.8277325]
[1723819266776,20.0,139.56,139.48,0.8277325]
[1723819267139,20.0,139.56,139.48,20.8277325]
[1723819267858,20.0,139.56,139.48,0.8277325]
[1723819268468,30.0,139.55,139.48,0.8277325]
[1723819268690,20.0,139.54,139.48,0.8277325]
[1723819269470,30.0,139.53,139.48,0.8277325]
[1723819269669,20.0,139.52,139.48,0.8277325]
[1723819272259,20.0,139.55,139.48,0.8277325]
[1723819272854,10.27715448,139.56,139.48,0.8277325]
[1723819273077,43.09,139.57,139.48,27.9967325]
[1723819273268,43.09,139.55,139.48,7.9967325]
[1723819273474,43.09,139.55,139.49,0.25098]
[1723819273644,43.09,139.55,139.5,0.12549]
[1723819273846,20.0,139.74,139.51,20.0]
[1723819274068,20.0,139.74,139.52,46.43273198]
[1723819274069,23.8145,139.64,139.52,46.43273198]
[1723819274580,23.8145,139.64,139.53,0.12549]
[1723819274760,23.8145,139.64,139.52,45.0]
[1723819274958,26.64961559,139.64,139.5,382.4]
[1723819275653,65.0,139.63,139.5,382.4]
[1723819276185,26.64961559,139.64,139.52,7.29289]
[1723819276364,26.64961559,139.64,139.52,0.97123283]
[1723819276954,43.09,139.6,139.53,7.1665]
[1723819277185,43.09,139.6,139.54,0.50196]
[1723819277395,43.09,139.6,139.54,45.50196]
[1723819277888,43.09,139.6,139.54,7.66826]
[1723819278086,43.09,139.6,139.55,45.0]
[1723819278511,43.09,139.58,139.54,45.0]
[1723819279407,20.0,139.57,139.54,45.0]
[1723819279571,20.0,139.57,139.53,45.0]
[1723819280580,3.40303183,139.63,139.54,20.12549]
[1723819280914,23.8145,139.64,139.56,0.12549]
[1723819281220,16.562,139.64,139.56,1.68328082]
[1723819281510,16.562,139.64,139.56,0.12549]
[1723819281678,16.562,139.64,139.55,45.25098]
[1723819281881,16.562,139.64,139.56,0.25098]
[1723819282215,3.44826735,139.65,139.57,0.12549]
[1723819282414,6.6881,139.67,139.57,45.12549]
[1723819282578,6.6881,139.67,139.55,382.4]
[1723819283219,65.0,139.66,139.55,382.4]
[1723819284601,43.09,139.56,139.55,382.4]
[1723819284806,63.09,139.56,139.51,7.1678]
[1723819285007,20.0,139.55,139.51,7.1678]
[1723819285204,20.0,139.55,139.5,444.0603]
[1723819285205,20.0,139.55,139.52,45.0]
[1723819285382,20.0,139.55,139.51,45.12549]
[1723819285747,20.0,139.55,139.51,45.0]
[1723819285917,27.0465,139.59,139.5,388.9793]
[1723819286125,27.0465,139.59,139.48,0.8277325]
[1723819286611,30.0,139.54,139.48,0.8277325]
[1723819286812,20.0,139.53,139.48,0.8277325]
[1723819287748,20.0,139.53,139.49,0.25098]
[1723819287952,20.0,139.58,139.48,0.8277325]
[1723819290114,30.0,139.52,139.48,0.8277325]
[1723819290316,20.0,139.51,139.48,0.8277325]
[1723819292838,30.0,139.5,139.48,0.8277325]
[1723819293038,20.0,139.49,139.4,382.4]
[1723819293333,20.0,139.49,139.37,16.7313]
[1723819293737,20.0,139.49,139.36,382.4]
[1723819293938,75.0,139.48,139.36,382.4]
[1723819294132,43.09,139.37,139.36,382.4]
[1723819294332,63.09,139.37,139.34,0.8277325]
[1723819294531,20.0,139.36,139.34,0.8277325]
[1723819295246,20.0,139.44,139.34,0.8277325]
[1723819295827,20.0,139.44,139.34,22.24533095]
[1723819296026,20.0,139.44,139.34,383.2277325]
[1723819296551,20.0,139.44,139.35,45.0]
[1723819296846,43.09,139.36,139.34,383.2277325]
[1723819297053,43.09,139.36,139.34,0.8277325]
[1723819297237,20.0,139.35,139.34,0.8277325]
[1723819298229,43.09,139.36,139.34,0.8277325]
[1723819298548,7.1773,139.45,139.34,0.8277325]
[1723819298751,65.0,139.44,139.34,0.8277325]
[1723819299048,20.0,139.44,139.34,0.8277325]
[1723819299347,43.09,139.37,139.34,0.8277325]
[1723819299522,20.0,139.36,139.34,0.8277325]
[1723819300138,17.0371,139.38,139.34,0.8277325]
[1723819300139,20.0,139.37,139.34,0.8277325]
[1723819300739,63.09,139.37,139.34,0.8277325]
[1723819301732,20.0,139.37,139.34,0.8277325]
[1723819302153,2.91432313,139.39,139.34,0.8277325]
[1723819302363,20.0,139.4,139.34,0.8277325]
[1723819302654,20.0,139.4,139.28,382.4]
[1723819302824,20.0,139.4,139.27,25.1301]
[1723819303033,22.90498859,139.4,139.28,7.1797]
[1723819303432,22.90498859,139.4,139.28,8.35673894]
[1723819303754,43.09,139.35,139.29,7.1792]
[1723819303955,30.38365454,139.4,139.28,0.12549]
[1723819304128,30.38365454,139.4,139.28,45.50196]
[1723819304858,30.38365454,139.4,139.28,65.50196]
[1723819305036,43.09,139.36,139.3,0.12549]
[1723819305230,43.09,139.39,139.32,0.12549]
[1723819305430,43.09,139.39,139.33,6.9054]
[1723819305655,24.5512,139.45,139.34,21.9348809]
[1723819305830,17.3739,139.45,139.35,17.9397]
[1723819306136,17.3739,139.45,139.37,0.12549]
[1723819306338,17.3739,139.45,139.37,45.25098]
[1723819306736,43.09,139.44,139.37,83.18748]
[1723819306966,43.09,139.44,139.39,7.1737]
[1723819307158,43.09,139.44,139.4,45.25098]
[1723819307654,43.09,139.44,139.4,45.0]
[1723819307851,40.57659832,139.48,139.39,382.4]
[1723819307852,10.57659832,139.48,139.39,382.4]
[1723819308267,10.57659832,139.48,139.4,0.25098]
[1723819308459,10.57659832,139.48,139.4,0.12549]
[1723819308666,10.57659832,139.48,139.39,382.4]
[1723819309738,20.0,139.47,139.39,382.4]
[1723819310568,20.0,139.47,139.33,407.2474]
[1723819310765,20.0,139.47,139.34,0.12549]
[1723819311568,20.0,139.47,139.34,7.30199]
[1723819311768,20.0,139.47,139.35,45.0]
[1723819312072,20.0,139.47,139.35,52.1759]
[1723819312240,20.0,139.47,139.36,7.42638]
[1723819312569,20.0,139.47,139.37,45.0]
[1723819312767,20.0,139.47,139.36,7.42608]
[1723819312952,20.0,139.47,139.37,45.0]
[1723819314637,20.0,139.47,139.36,45.25098]
[1723819314849,20.0,139.47,139.36,0.25098]
[1723819315662,20.0,139.47,139.34,17.9412]
[1723819315871,45.0,139.46,139.33,389.3054]
[1723819316068,6.9697,139.44,139.33,382.4]
[1723819316369,30.0,139.4,139.3,7.1783]
[1723819316574,20.0,139.39,139.31,7.1781]
[1723819317388,30.0,139.38,139.32,45.12549]
[1723819317680,20.0,139.37,139.32,45.12549]
[1723819317865,20.0,139.37,139.32,45.0]
[1723819318173,20.0,139.37,139.31,45.0]
[1723819318349,3.3414967,139.41,139.31,45.0]
[1723819318547,20.0,139.43,139.31,45.0]
[1723819318878,20.0,139.43,139.31,7.178]
[1723819319241,14.45030313,139.44,139.32,37.9439]
[1723819319579,6.9697,139.44,139.32,37.9439]
[1723819319942,6.9697,139.44,139.34,7.1763]
[1723819320145,6.9697,139.44,139.35,45.0]
[1723819320742,6.9697,139.44,139.36,0.25098]
[1723819320954,9.74619082,139.44,139.35,45.0]
[1723819321268,9.74619082,139.44,139.34,382.4]
[1723819322269,20.0,139.43,139.34,382.4]
[1723819322451,20.0,139.43,139.35,45.0]
[1723819322770,20.0,139.43,139.34,382.4]
[1723819323455,20.0,139.43,139.35,45.0]
[1723819324353,20.0,139.43,139.34,382.4]
[1723819324867,20.0,139.43,139.29,6.7046]
[1723819325071,30.0,139.36,139.27,17.809]
[1723819325268,20.0,139.35,139.27,17.809]
[1723819325670,20.0,139.35,139.27,17.9504]
[1723819326050,20.0,139.35,139.28,7.1793]
[1723819326249,20.0,139.35,139.29,45.0]
[1723819326455,20.0,139.35,139.28,45.0]
[1723819326665,7.0501,139.39,139.32,0.12549]
[1723819326850,20.0,139.38,139.32,45.12549]
[1723819327055,20.0,139.38,139.32,45.0]
[1723819328058,20.0,139.38,139.33,17.9425]
[1723819328274,17.3719,139.42,139.34,52.30199]
[1723819328871,43.09,139.39,139.34,45.12549]
[1723819329074,43.09,139.39,139.34,45.0]
[1723819329262,43.09,139.37,139.34,45.0]
[1723819329673,17.3719,139.42,139.33,52.30249]
[1723819329874,20.0,139.41,139.34,0.12549]